{"text_format":"3","workbook":"xlsx","n_sheets":1,"sheets":["Atsargų sąrašas"],"not_rendered":{"defined_names":3},"read":"whole","date_system":"1900"}

{"sheet":"Atsargų sąrašas","index":0,"n_rows":28,"n_cols":12,"rows_kept":28,"merged":[[0,2,0,4],[0,5,0,6]]}
[null,null,"Atsargų sąrašas",null,null,"Paryškinti prekes, kurių reikia papildomai užsakyti?",null,"Taip"]
[]
[null,"Pažymėti elementai pakartotinai užsakomi","Atsargų ID","Pavadinimas","Aprašas","Vieneto kaina","Kiekis sandėlyje","Atsargų vertė","Papildomo užsakymo lygis","Papildomo užsakymo laikas dienomis","Papildomo užsakymo kiekis","Nebetiekiama?"]
[null,{"$f":"IFERROR((AtsargųSąrašas[[#This Row],[Kiekis sandėlyje]]<=AtsargųSąrašas[[#This Row],[Papildomo užsakymo lygis]])*(AtsargųSąrašas[[#This Row],[Nebetiekiama?]]=\"\")*vertPažymėti,0)","v":1},"IN0001","1 prekė","1 aprašas",{"v":51,"d":"51.00 €"},25,{"$f":"AtsargųSąrašas[[#This Row],[Vieneto kaina]]*AtsargųSąrašas[[#This Row],[Kiekis sandėlyje]]","v":{"v":1275,"d":"1,275.00 €"}},29,13,50,""]
[null,{"$f":"IFERROR((AtsargųSąrašas[[#This Row],[Kiekis sandėlyje]]<=AtsargųSąrašas[[#This Row],[Papildomo užsakymo lygis]])*(AtsargųSąrašas[[#This Row],[Nebetiekiama?]]=\"\")*vertPažymėti,0)","v":1},"IN0002","2 prekė","2 aprašas",{"v":93,"d":"93.00 €"},132,{"$f":"AtsargųSąrašas[[#This Row],[Vieneto kaina]]*AtsargųSąrašas[[#This Row],[Kiekis sandėlyje]]","v":{"v":12276,"d":"12,276.00 €"}},231,4,50,""]
[null,{"$f":"IFERROR((AtsargųSąrašas[[#This Row],[Kiekis sandėlyje]]<=AtsargųSąrašas[[#This Row],[Papildomo užsakymo lygis]])*(AtsargųSąrašas[[#This Row],[Nebetiekiama?]]=\"\")*vertPažymėti,0)","v":0},"IN0003","3 prekė","3 aprašas",{"v":57,"d":"57.00 €"},151,{"$f":"AtsargųSąrašas[[#This Row],[Vieneto kaina]]*AtsargųSąrašas[[#This Row],[Kiekis sandėlyje]]","v":{"v":8607,"d":"8,607.00 €"}},114,11,150,""]
[null,{"$f":"IFERROR((AtsargųSąrašas[[#This Row],[Kiekis sandėlyje]]<=AtsargųSąrašas[[#This Row],[Papildomo užsakymo lygis]])*(AtsargųSąrašas[[#This Row],[Nebetiekiama?]]=\"\")*vertPažymėti,0)","v":0},"IN0004","4 prekė","4 aprašas",{"v":19,"d":"19.00 €"},186,{"$f":"AtsargųSąrašas[[#This Row],[Vieneto kaina]]*AtsargųSąrašas[[#This Row],[Kiekis sandėlyje]]","v":{"v":3534,"d":"3,534.00 €"}},158,6,50,""]
[null,{"$f":"IFERROR((AtsargųSąrašas[[#This Row],[Kiekis sandėlyje]]<=AtsargųSąrašas[[#This Row],[Papildomo užsakymo lygis]])*(AtsargųSąrašas[[#This Row],[Nebetiekiama?]]=\"\")*vertPažymėti,0)","v":0},"IN0005","5 prekė","5 aprašas",{"v":75,"d":"75.00 €"},62,{"$f":"AtsargųSąrašas[[#This Row],[Vieneto kaina]]*AtsargųSąrašas[[#This Row],[Kiekis sandėlyje]]","v":{"v":4650,"d":"4,650.00 €"}},39,12,50,""]
[null,{"$f":"IFERROR((AtsargųSąrašas[[#This Row],[Kiekis sandėlyje]]<=AtsargųSąrašas[[#This Row],[Papildomo užsakymo lygis]])*(AtsargųSąrašas[[#This Row],[Nebetiekiama?]]=\"\")*vertPažymėti,0)","v":1},"IN0006","6 prekė","6 aprašas",{"v":11,"d":"11.00 €"},5,{"$f":"AtsargųSąrašas[[#This Row],[Vieneto kaina]]*AtsargųSąrašas[[#This Row],[Kiekis sandėlyje]]","v":{"v":55,"d":"55.00 €"}},9,13,150,""]
[null,{"$f":"IFERROR((AtsargųSąrašas[[#This Row],[Kiekis sandėlyje]]<=AtsargųSąrašas[[#This Row],[Papildomo užsakymo lygis]])*(AtsargųSąrašas[[#This Row],[Nebetiekiama?]]=\"\")*vertPažymėti,0)","v":0},"IN0007","7 prekė","7 aprašas",{"v":56,"d":"56.00 €"},58,{"$f":"AtsargųSąrašas[[#This Row],[Vieneto kaina]]*AtsargųSąrašas[[#This Row],[Kiekis sandėlyje]]","v":{"v":3248,"d":"3,248.00 €"}},109,7,100,"taip"]
[null,{"$f":"IFERROR((AtsargųSąrašas[[#This Row],[Kiekis sandėlyje]]<=AtsargųSąrašas[[#This Row],[Papildomo užsakymo lygis]])*(AtsargųSąrašas[[#This Row],[Nebetiekiama?]]=\"\")*vertPažymėti,0)","v":1},"IN0008","8 prekė","8 aprašas",{"v":38,"d":"38.00 €"},101,{"$f":"AtsargųSąrašas[[#This Row],[Vieneto kaina]]*AtsargųSąrašas[[#This Row],[Kiekis sandėlyje]]","v":{"v":3838,"d":"3,838.00 €"}},162,3,100,""]
[null,{"$f":"IFERROR((AtsargųSąrašas[[#This Row],[Kiekis sandėlyje]]<=AtsargųSąrašas[[#This Row],[Papildomo užsakymo lygis]])*(AtsargųSąrašas[[#This Row],[Nebetiekiama?]]=\"\")*vertPažymėti,0)","v":0},"IN0009","9 prekė","9 aprašas",{"v":59,"d":"59.00 €"},122,{"$f":"AtsargųSąrašas[[#This Row],[Vieneto kaina]]*AtsargųSąrašas[[#This Row],[Kiekis sandėlyje]]","v":{"v":7198,"d":"7,198.00 €"}},82,3,150,""]
[null,{"$f":"IFERROR((AtsargųSąrašas[[#This Row],[Kiekis sandėlyje]]<=AtsargųSąrašas[[#This Row],[Papildomo užsakymo lygis]])*(AtsargųSąrašas[[#This Row],[Nebetiekiama?]]=\"\")*vertPažymėti,0)","v":1},"IN0010","10 prekė","10 aprašas",{"v":50,"d":"50.00 €"},175,{"$f":"AtsargųSąrašas[[#This Row],[Vieneto kaina]]*AtsargųSąrašas[[#This Row],[Kiekis sandėlyje]]","v":{"v":8750,"d":"8,750.00 €"}},283,8,150,""]
[null,{"$f":"IFERROR((AtsargųSąrašas[[#This Row],[Kiekis sandėlyje]]<=AtsargųSąrašas[[#This Row],[Papildomo užsakymo lygis]])*(AtsargųSąrašas[[#This Row],[Nebetiekiama?]]=\"\")*vertPažymėti,0)","v":1},"IN0011","11 prekė","11 aprašas",{"v":59,"d":"59.00 €"},176,{"$f":"AtsargųSąrašas[[#This Row],[Vieneto kaina]]*AtsargųSąrašas[[#This Row],[Kiekis sandėlyje]]","v":{"v":10384,"d":"10,384.00 €"}},229,1,100,""]
[null,{"$f":"IFERROR((AtsargųSąrašas[[#This Row],[Kiekis sandėlyje]]<=AtsargųSąrašas[[#This Row],[Papildomo užsakymo lygis]])*(AtsargųSąrašas[[#This Row],[Nebetiekiama?]]=\"\")*vertPažymėti,0)","v":1},"IN0012","12 prekė","12 aprašas",{"v":18,"d":"18.00 €"},22,{"$f":"AtsargųSąrašas[[#This Row],[Vieneto kaina]]*AtsargųSąrašas[[#This Row],[Kiekis sandėlyje]]","v":{"v":396,"d":"396.00 €"}},36,12,50,""]
[null,{"$f":"IFERROR((AtsargųSąrašas[[#This Row],[Kiekis sandėlyje]]<=AtsargųSąrašas[[#This Row],[Papildomo užsakymo lygis]])*(AtsargųSąrašas[[#This Row],[Nebetiekiama?]]=\"\")*vertPažymėti,0)","v":1},"IN0013","13 prekė","13 aprašas",{"v":26,"d":"26.00 €"},72,{"$f":"AtsargųSąrašas[[#This Row],[Vieneto kaina]]*AtsargųSąrašas[[#This Row],[Kiekis sandėlyje]]","v":{"v":1872,"d":"1,872.00 €"}},102,9,100,""]
[null,{"$f":"IFERROR((AtsargųSąrašas[[#This Row],[Kiekis sandėlyje]]<=AtsargųSąrašas[[#This Row],[Papildomo užsakymo lygis]])*(AtsargųSąrašas[[#This Row],[Nebetiekiama?]]=\"\")*vertPažymėti,0)","v":1},"IN0014","14 prekė","14 aprašas",{"v":42,"d":"42.00 €"},62,{"$f":"AtsargųSąrašas[[#This Row],[Vieneto kaina]]*AtsargųSąrašas[[#This Row],[Kiekis sandėlyje]]","v":{"v":2604,"d":"2,604.00 €"}},83,2,100,""]
[null,{"$f":"IFERROR((AtsargųSąrašas[[#This Row],[Kiekis sandėlyje]]<=AtsargųSąrašas[[#This Row],[Papildomo užsakymo lygis]])*(AtsargųSąrašas[[#This Row],[Nebetiekiama?]]=\"\")*vertPažymėti,0)","v":0},"IN0015","15 prekė","15 aprašas",{"v":32,"d":"32.00 €"},46,{"$f":"AtsargųSąrašas[[#This Row],[Vieneto kaina]]*AtsargųSąrašas[[#This Row],[Kiekis sandėlyje]]","v":{"v":1472,"d":"1,472.00 €"}},23,15,50,""]
[null,{"$f":"IFERROR((AtsargųSąrašas[[#This Row],[Kiekis sandėlyje]]<=AtsargųSąrašas[[#This Row],[Papildomo užsakymo lygis]])*(AtsargųSąrašas[[#This Row],[Nebetiekiama?]]=\"\")*vertPažymėti,0)","v":1},"IN0016","16 prekė","16 aprašas",{"v":90,"d":"90.00 €"},96,{"$f":"AtsargųSąrašas[[#This Row],[Vieneto kaina]]*AtsargųSąrašas[[#This Row],[Kiekis sandėlyje]]","v":{"v":8640,"d":"8,640.00 €"}},180,3,50,""]
[null,{"$f":"IFERROR((AtsargųSąrašas[[#This Row],[Kiekis sandėlyje]]<=AtsargųSąrašas[[#This Row],[Papildomo užsakymo lygis]])*(AtsargųSąrašas[[#This Row],[Nebetiekiama?]]=\"\")*vertPažymėti,0)","v":0},"IN0017","17 prekė","17 aprašas",{"v":97,"d":"97.00 €"},57,{"$f":"AtsargųSąrašas[[#This Row],[Vieneto kaina]]*AtsargųSąrašas[[#This Row],[Kiekis sandėlyje]]","v":{"v":5529,"d":"5,529.00 €"}},98,12,50,"Taip"]
[null,{"$f":"IFERROR((AtsargųSąrašas[[#This Row],[Kiekis sandėlyje]]<=AtsargųSąrašas[[#This Row],[Papildomo užsakymo lygis]])*(AtsargųSąrašas[[#This Row],[Nebetiekiama?]]=\"\")*vertPažymėti,0)","v":1},"IN0018","18 prekė","18 aprašas",{"v":12,"d":"12.00 €"},6,{"$f":"AtsargųSąrašas[[#This Row],[Vieneto kaina]]*AtsargųSąrašas[[#This Row],[Kiekis sandėlyje]]","v":{"v":72,"d":"72.00 €"}},7,13,50,""]
[null,{"$f":"IFERROR((AtsargųSąrašas[[#This Row],[Kiekis sandėlyje]]<=AtsargųSąrašas[[#This Row],[Papildomo užsakymo lygis]])*(AtsargųSąrašas[[#This Row],[Nebetiekiama?]]=\"\")*vertPažymėti,0)","v":1},"IN0019","19 prekė","19 aprašas",{"v":82,"d":"82.00 €"},143,{"$f":"AtsargųSąrašas[[#This Row],[Vieneto kaina]]*AtsargųSąrašas[[#This Row],[Kiekis sandėlyje]]","v":{"v":11726,"d":"11,726.00 €"}},164,12,150]
[null,{"$f":"IFERROR((AtsargųSąrašas[[#This Row],[Kiekis sandėlyje]]<=AtsargųSąrašas[[#This Row],[Papildomo užsakymo lygis]])*(AtsargųSąrašas[[#This Row],[Nebetiekiama?]]=\"\")*vertPažymėti,0)","v":0},"IN0020","20 prekė","20 aprašas",{"v":16,"d":"16.00 €"},124,{"$f":"AtsargųSąrašas[[#This Row],[Vieneto kaina]]*AtsargųSąrašas[[#This Row],[Kiekis sandėlyje]]","v":{"v":1984,"d":"1,984.00 €"}},113,14,50,""]
[null,{"$f":"IFERROR((AtsargųSąrašas[[#This Row],[Kiekis sandėlyje]]<=AtsargųSąrašas[[#This Row],[Papildomo užsakymo lygis]])*(AtsargųSąrašas[[#This Row],[Nebetiekiama?]]=\"\")*vertPažymėti,0)","v":0},"IN0021","21 prekė","21 aprašas",{"v":19,"d":"19.00 €"},112,{"$f":"AtsargųSąrašas[[#This Row],[Vieneto kaina]]*AtsargųSąrašas[[#This Row],[Kiekis sandėlyje]]","v":{"v":2128,"d":"2,128.00 €"}},75,11,50,""]
[null,{"$f":"IFERROR((AtsargųSąrašas[[#This Row],[Kiekis sandėlyje]]<=AtsargųSąrašas[[#This Row],[Papildomo užsakymo lygis]])*(AtsargųSąrašas[[#This Row],[Nebetiekiama?]]=\"\")*vertPažymėti,0)","v":0},"IN0022","22 prekė","22 aprašas",{"v":24,"d":"24.00 €"},182,{"$f":"AtsargųSąrašas[[#This Row],[Vieneto kaina]]*AtsargųSąrašas[[#This Row],[Kiekis sandėlyje]]","v":{"v":4368,"d":"4,368.00 €"}},132,15,150,""]
[null,{"$f":"IFERROR((AtsargųSąrašas[[#This Row],[Kiekis sandėlyje]]<=AtsargųSąrašas[[#This Row],[Papildomo užsakymo lygis]])*(AtsargųSąrašas[[#This Row],[Nebetiekiama?]]=\"\")*vertPažymėti,0)","v":0},"IN0023","23 prekė","23 aprašas",{"v":29,"d":"29.00 €"},106,{"$f":"AtsargųSąrašas[[#This Row],[Vieneto kaina]]*AtsargųSąrašas[[#This Row],[Kiekis sandėlyje]]","v":{"v":3074,"d":"3,074.00 €"}},142,1,150,"Taip"]
[null,{"$f":"IFERROR((AtsargųSąrašas[[#This Row],[Kiekis sandėlyje]]<=AtsargųSąrašas[[#This Row],[Papildomo užsakymo lygis]])*(AtsargųSąrašas[[#This Row],[Nebetiekiama?]]=\"\")*vertPažymėti,0)","v":0},"IN0024","24 prekė","24 aprašas",{"v":75,"d":"75.00 €"},173,{"$f":"AtsargųSąrašas[[#This Row],[Vieneto kaina]]*AtsargųSąrašas[[#This Row],[Kiekis sandėlyje]]","v":{"v":12975,"d":"12,975.00 €"}},127,9,100,""]
[null,{"$f":"IFERROR((AtsargųSąrašas[[#This Row],[Kiekis sandėlyje]]<=AtsargųSąrašas[[#This Row],[Papildomo užsakymo lygis]])*(AtsargųSąrašas[[#This Row],[Nebetiekiama?]]=\"\")*vertPažymėti,0)","v":0},"IN0025","25 prekė","25 aprašas",{"v":14,"d":"14.00 €"},28,{"$f":"AtsargųSąrašas[[#This Row],[Vieneto kaina]]*AtsargųSąrašas[[#This Row],[Kiekis sandėlyje]]","v":{"v":392,"d":"392.00 €"}},21,8,50,""]